fUST/lending_fUST_20260302
["ID","MTS","AMOUNT","RATE_DAILY","PERIOD"]
[406993294,1772433044388,-179.23265454,0.00013537,2]
[406993299,1772433046836,-120.76734546,0.00013537,2]
[406993300,1772433046846,-300.0,0.00013537,2]
[406993301,1772433046860,-266.08072015,0.00013537,2]
[406993316,1772433062864,-1219.3137,0.00013402,2]
[406993441,1772433605827,183.86,9.5e-05,2]
[406993446,1772433637314,183.86,9.501e-05,2]
[406993447,1772433698097,174.0,4.3e-07,2]
[406993448,1772433699719,174.0,4.3e-07,2]
[406993450,1772433701440,174.0,4.3e-07,2]
[406993451,1772433702485,174.0,4.3e-07,2]
[406995673,1772434231734,-154.01505674,0.00012719,2]
[406995675,1772434231744,-261.6302282,0.00012847,2]
[406995677,1772434231754,-185.45,0.00013078,2]
[406995679,1772434231764,-500.0,0.00013273,2]
[406995681,1772434231773,-147.34309315,0.00013273,2]
[406995902,1772434242930,-326.47580997,0.00013273,2]
[406995924,1772434245855,-26.18109688,0.00013273,2]
[406995925,1772434245866,-500.0,0.00013273,2]
[406995927,1772434245876,-500.0,0.00013273,2]
[406995928,1772434245885,-1094.74036024,0.00013821,2]
[406995930,1772434245895,-392.3893917,0.0001398,2]
[406995932,1772434245908,-150.0,0.00013985,2]
[406995933,1772434245918,-241.24860793,0.00013985,2]
[406995935,1772434245930,-83.31923097,0.00013985,2]
[406995936,1772434245940,-2517.77689377,0.00014175,2]
[406995937,1772434245951,-114.19240048,0.0001421,2]
[406995939,1772434299211,3030.0,0.0001001,2]
[406995948,1772434804689,150.74,9.5e-05,2]
[406995949,1772434843330,-346.10838006,0.00011,3]
[406995950,1772434843350,-346.10838006,0.00011166,2]
[406995951,1772434843362,-507.78323988,0.00011166,2]
[406995953,1772435165325,329.45,0.0001,2]
[406995955,1772435204812,1538.01353498,0.0001001,2]
[406995956,1772435213059,5000.0,0.0001001,2]
[406995957,1772435236310,4146.10838006,0.0001001,2]
[406995958,1772435258605,5000.0,0.0001001,2]
[406995959,1772435281220,5000.0,0.0001001,2]
[406995960,1772435302949,5000.0,0.0001001,2]
[406995961,1772435325223,5000.0,0.0001001,2]
[406995962,1772435347608,5000.0,0.0001001,2]
[406995963,1772435369792,5000.0,0.0001001,2]
[406995964,1772435386295,522.3936,0.0001001,2]
[406996004,1772435431931,-5000.0,0.00010206,2]
[406996005,1772435431941,-563.0,0.00010206,2]
[406996006,1772435431951,-150.0,0.00010309,2]
[406996007,1772435431960,-200.0,0.00010417,2]
[406996008,1772435431970,-300.0,0.00010509,2]
[406996009,1772435431980,-300.0,0.00010509,2]
[406996010,1772435431989,-1200.0,0.00010509,2]
[406996011,1772435431999,-2548.59314906,0.0001051,2]
[406996012,1772435432009,-426.88373226,0.00010618,2]
[406996013,1772435432019,-153.86789647,0.00011,3]
[406996014,1772435432028,-167.0,0.00011554,2]
[406996015,1772435432038,-1426.0,0.0001156,2]
[406996016,1772435432047,-500.0,0.00011561,2]
[406996017,1772435432057,-500.0,0.00011561,2]
[406996018,1772435432066,-500.0,0.00011561,2]
[406996019,1772435432076,-579.22606516,0.00011561,2]
[406996020,1772435432085,-500.0,0.00011561,2]
[406996021,1772435432094,-500.0,0.00011561,2]
[406996022,1772435432104,-409.93542583,0.00011561,2]
[406996023,1772435432113,-295.51622749,0.00011561,2]
[406996024,1772435432123,-40001.29243587,0.00011562,2]
[406996025,1772435432132,-5154.47212581,0.00011564,2]
[406996026,1772435432142,-268.13806082,0.00012309,2]
[406996027,1772435432151,-804.38213194,0.00012536,2]
[406996028,1772435432163,-133.9396779,0.00012536,2]
[406996029,1772435432173,-213.77144498,0.0001304,2]
[406996030,1772435432182,-187.937,0.00013402,2]
[406996031,1772435432192,-501.92837847,0.00013698,2]
[406996032,1772435432202,-311.09561122,0.00013698,2]
[406996033,1772435432211,-152.1488407,0.00013963,2]
[406996034,1772435432222,-151.0,0.0001421,2]
[406996035,1772435432237,-151.0,0.0001421,2]
[406996036,1772435432246,-2101.46735135,0.0001421,2]
[406996037,1772435432262,-329.505,0.0001421,2]
[406996056,1772435437936,-4755.33072917,0.0001421,2]
[406996058,1772435437946,-578.04537302,0.00014408,2]
[406996060,1772435437955,-308.1501824,0.00014452,2]
[406996062,1772435437965,-427.71,0.00014685,2]
[406996063,1772435437974,-151.0,0.00014785,2]
[406996066,1772435437983,-151.0,0.00014785,2]
[406996067,1772435437992,-151.0,0.00014785,2]
[406996069,1772435438002,-151.0,0.00014785,2]
[406996104,1772435438303,-1139.83377531,0.00015001,2]
[406996107,1772435438326,-2207.16622469,0.00015001,2]
[406996109,1772435438335,-151.26029338,0.0001509,2]
[406996111,1772435438345,-150.0,0.0001509,2]
[406996113,1772435438362,-239.4590494,0.0001509,2]
[406996114,1772435438380,-248.1882455,0.00015185,2]
[406996116,1772435438390,-3347.0,0.00015186,2]
[406996118,1772435438400,-259.0,0.00015265,2]
[406996120,1772435438409,-169.0,0.00015286,2]
[406996122,1772435438419,-776.51819042,0.00015307,2]
[406996124,1772435438428,-259.0,0.00015311,2]
[406996126,1772435438438,-1957.856,0.00015364,2]
[406996128,1772435438446,-250.0,0.00015364,2]
[406996130,1772435438455,-514.84070869,0.00015364,2]
[406996132,1772435438464,-250.0,0.00015364,2]
[406996133,1772435438473,-187.78006525,0.00015364,2]
[406996135,1772435438482,-250.0,0.00015364,2]
[406996137,1772435438491,-250.0,0.00015364,2]
[406996139,1772435438505,-250.0,0.00015364,2]
[406996141,1772435438515,-187.78006525,0.00015364,2]
[406996143,1772435438524,-194.72792766,0.00015364,2]
[406996145,1772435438533,-201.93286099,0.00015364,2]
[406996147,1772435438543,-209.40437684,0.00015364,2]
[406996149,1772435438553,-186.80251303,0.00015364,2]
[406996150,1772435438562,-217.15233878,0.00015364,2]
[406996153,1772435438572,-13.75220139,0.00015364,2]
[406996155,1772435438584,-211.43477393,0.00015364,2]
[406996157,1772435438593,-233.51889341,0.00015364,2]
[406996159,1772435438603,-242.15909246,0.00015364,2]
[406996161,1772435438612,-621.78829552,0.00015364,2]
[406996163,1772435438622,-251.11897888,0.00015364,2]
[406996165,1772435438633,-300.21984516,0.00015364,2]
[406996167,1772435438642,-2487.15318209,0.00015364,2]
[406996169,1772435438652,-500.0,0.00015364,2]
[406996171,1772435438662,-500.0,0.00015364,2]
[406996172,1772435438671,-500.0,0.00015364,2]
[406996174,1772435438681,-121.33309608,0.00015364,2]
[406996177,1772435438697,-378.66690392,0.00015364,2]
[406996179,1772435438707,-500.0,0.00015364,2]
[406996181,1772435438717,-500.0,0.00015364,2]
[406996183,1772435438727,-298.94925597,0.00015364,2]
[406996185,1772435438739,-201.05074403,0.00015364,2]
[406996187,1772435438748,-500.0,0.00015364,2]
[406996189,1772435438757,-500.0,0.00015364,2]
[406996191,1772435438767,-500.0,0.00015364,2]
[406996193,1772435438776,-500.0,0.00015364,2]
[406996195,1772435438787,-259.0,0.00015386,2]
[406996197,1772435438796,-259.0,0.00015408,2]
[406996199,1772435438805,-2030.296672,0.00015419,2]
[406996201,1772435438815,-1438.06459063,0.00015474,2]
[406996203,1772435438826,-259.0,0.00015523,2]
[406996205,1772435438839,-259.0,0.00015563,2]
[406996207,1772435438849,-210.28961262,0.00015567,2]
[406996209,1772435438873,-259.0,0.00015667,2]
[406996211,1772435438883,-600.0,0.00015671,2]
[406996213,1772435438893,-708.48019865,0.000157,2]
[406996214,1772435438903,-259.0,0.00015711,2]
[406996215,1772435438913,-259.0,0.0001578,2]
[406996216,1772435438923,-259.0,0.0001579,2]
[406996217,1772435438933,-5392.05880099,0.00015875,2]
[406996270,1772435440504,-4282.86438692,0.00015875,2]
[406996272,1772435440514,-228.268,0.00015895,2]
[406996274,1772435440524,-208.107,0.00015895,2]
[406996276,1772435440534,-196.40214452,0.00015911,2]
[406996277,1772435440544,-533.88981491,0.00015912,2]
[406996278,1772435440553,-415.89620447,0.00015912,2]
[406996279,1772435440563,-2579.17784983,0.00015912,2]
[406996280,1772435440572,-23204.62369706,0.00016,2]
[406996281,1772435440584,-975.0,0.00016,2]
[406996282,1772435440595,-7378.54934401,0.00016,2]
[406996289,1772435443328,-11370.09,0.00016,2]
[406996290,1772435443388,-1050.51411143,0.00016,2]
[406996300,1772435446096,-1424.56935868,0.00015939,2]
[406996301,1772435446106,-6046.80008623,0.00016,2]
[406996305,1772436327912,-253.12667455,0.00010374,2]
[406996306,1772436327946,-568.0,0.00010585,2]
[406996307,1772436327976,-178.87332545,0.000108,2]
[406996308,1772436330243,-454.63523308,0.000108,2]
[406996309,1772436330275,-500.0,0.000108,2]
[406996310,1772436330306,-45.36476692,0.000108,2]
[406996311,1772436331655,-454.63523308,0.000108,2]
[406996334,1772436632040,-1298.42025008,0.00013159,2]
[406996336,1772436632051,-3471.30394147,0.00013292,2]
[406996339,1772436632063,-1528.69605853,0.00013292,2]
[406996341,1772436632073,-609.0,0.00013292,2]
[406996343,1772436632083,-152.54991704,0.00013494,2]
[406996345,1772436632093,-500.0,0.00013699,2]
[406996348,1772436632102,-500.74739176,0.00014247,2]
[406996351,1772436632111,-500.0,0.0001517,2]
[406996354,1772436632121,-500.0,0.0001517,5]
[406996356,1772436632132,-202.25829133,0.0001517,2]
[406996358,1772436632142,-186.28672586,0.00015373,2]
[406996360,1772436632152,-196.40214452,0.00015851,2]
[406996362,1772436632160,-300.0,0.00015859,2]
[406996364,1772436632170,-300.0,0.00015861,2]
[406996366,1772436632179,-784.8906847,0.00015862,2]
[406996368,1772436632189,-4015.36653778,0.00016,2]
[406996371,1772436632211,-386.02,0.00016,2]
[406996373,1772436632223,-657.46,0.00016,2]
[406996451,1772436638323,-2525.36643003,0.00016,2]
[406996452,1772436638340,-253.19172798,0.00016,2]
[406996465,1772436640917,-380.36253887,0.0001584,2]
[406996466,1772436640929,-1719.26634701,0.0001584,2]
[406996467,1772436640941,-300.37111412,0.0001584,2]
[406996468,1772436640951,-4371.86772678,0.00016,2]
[406996482,1772436643331,-11238.97495803,0.00016,2]
[406996483,1772436643352,-44448.4546636,0.00016,2]
[406996484,1772436643364,-63256.80272125,0.00016,2]
[406996485,1772436643374,-689.0,0.00016,2]
[406996486,1772436643384,-218.81544368,0.00016,2]
[406996487,1772436643394,-351.0,0.00016,2]
[406996488,1772436643403,-363.98380452,0.00016,2]
[406996489,1772436643420,-351.0,0.00016,2]
[406996490,1772436643718,-164.0,0.000161,2]
[406996491,1772436643728,-2487.15318209,0.0001615,2]
[406996492,1772436643738,-3471.73266403,0.0001616,2]
[406996493,1772436643748,-521.86,0.00016164,3]
[406996494,1772436643758,-2870.27,0.00016164,3]
[406996495,1772436643768,-183.244,0.00016173,2]
[406996496,1772436643777,-212.21504732,0.00016173,2]
[406996497,1772436643787,-50740.08102229,0.00016174,2]
[406996498,1772436643799,-2509.34647797,0.00016174,2]
[406996518,1772436646584,-1435.14,0.00016164,3]
[406996519,1772436646595,-38985.54492232,0.00016174,2]
[406996562,1772437832171,-5000.0,0.0001472,2]
[406996564,1772437832181,-300.0,0.00015002,2]
[406996566,1772437832191,-427.90339807,0.00015003,2]
[406996569,1772437832203,-650.98336948,0.00015003,2]
[406996572,1772437832216,-1421.2607696,0.00015003,2]
[406996621,1772437838369,-5486.24086895,0.00015003,2]
[406996622,1772437838379,-754.4774446,0.00015019,2]
[406996623,1772437838388,-3060.2864211,0.00015928,2]
[406996624,1772437838398,-3121.9565296,0.00015928,2]
[406996625,1772437838407,-334.98079045,0.00015954,2]
[406996626,1772437838417,-180.76550235,0.00015954,2]
[406996627,1772437838426,-1202.17095999,0.00015961,2]
[406996628,1772437838435,-196.40214452,0.00016,2]
[406996629,1772437838445,-500.0,0.00016011,2]
[406996630,1772437838454,-500.0,0.00016011,2]
[406996631,1772437838464,-601.7,0.00016011,2]
[406996632,1772437838473,-8422.56316344,0.00016012,2]
[406996634,1772437838482,-179.49,0.00016012,2]
[406996636,1772437838491,-2487.15318209,0.00016063,2]
[406996637,1772437838500,-1785.43,0.00016064,3]
[406996639,1772437838510,-514.84070869,0.00016064,2]
[406996641,1772437838519,-170.84016292,0.00016064,2]
[406996642,1772437838528,-187.78006525,0.00016064,2]
[406996644,1772437838538,-194.72792766,0.00016064,2]
[406996645,1772437838548,-201.93286099,0.00016064,2]
[406996646,1772437838557,-209.40437684,0.00016064,2]
[406996647,1772437838566,-217.15233878,0.00016064,2]
[406996648,1772437838575,-225.18697532,0.00016064,2]
[406996649,1772437838584,-233.51889341,0.00016064,2]
[406996650,1772437838594,-242.15909246,0.00016064,2]
[406996651,1772437838603,-251.11897888,0.00016064,2]
[406996652,1772437838612,-260.4103811,0.00016064,2]
[406996653,1772437838621,-270.0455652,0.00016064,2]
[406996654,1772437838630,-280.03725112,0.00016064,2]
[406996655,1772437838639,-290.39862941,0.00016064,2]
[406996656,1772437838648,-301.1433787,0.00016064,2]
[406996657,1772437838657,-601.7,0.00016071,2]
[406996658,1772437838667,-600.7714589,0.00016072,2]
[406996659,1772437838676,-500.0,0.00016072,2]
[406996660,1772437838685,-601.7,0.00016073,2]
[406996661,1772437838695,-601.7,0.00016073,2]
[406996662,1772437838703,-601.7,0.00016073,2]
[406996663,1772437838713,-601.7,0.00016073,2]
[406996664,1772437838722,-601.7,0.00016073,2]
[406996665,1772437838731,-601.7,0.00016073,2]
[406996666,1772437838740,-601.7,0.00016073,2]
[406996667,1772437838750,-601.7,0.00016073,2]
[406996668,1772437838759,-601.7,0.00016073,2]
[406996669,1772437838768,-601.7,0.00016073,2]
[406996670,1772437838777,-601.7,0.00016073,2]
[406996671,1772437838786,-601.7,0.00016073,2]
[406996672,1772437838795,-601.7,0.00016073,2]
[406996673,1772437838804,-601.7,0.00016073,2]
[406996674,1772437838813,-601.7,0.00016073,2]
[406996675,1772437838822,-601.7,0.00016073,2]
[406996676,1772437838832,-601.7,0.00016073,2]
[406996677,1772437838841,-601.7,0.00016073,2]
[406996678,1772437838851,-601.7,0.00016073,2]
[406996679,1772437838859,-601.7,0.00016073,2]
[406996680,1772437838869,-601.7,0.00016073,2]
[406996681,1772437838879,-601.92020123,0.00016073,2]
[406996682,1772437838888,-864679.73373078,0.00016074,2]
[406996683,1772437838897,-151.0,0.00016074,2]
[406996684,1772437838907,-262.445806,0.00016074,2]
[406996685,1772437838919,-151.0,0.00016074,2]
[406996686,1772437838928,-487.0,0.00016074,2]
[406996687,1772437838937,-487.0,0.00016074,2]
[406996688,1772437838946,-487.0,0.00016074,2]
[406996689,1772437838957,-487.0,0.00016074,2]
[406996690,1772437838966,-487.0,0.00016074,2]
[406996691,1772437838975,-487.0,0.00016074,2]
[406996692,1772437838987,-487.0,0.00016074,2]
[406996693,1772437838996,-487.0,0.00016074,2]
[406996694,1772437839005,-487.0,0.00016074,2]
[406996695,1772437839015,-487.0,0.00016074,2]
[406996696,1772437839024,-487.0,0.00016074,2]
[406996697,1772437839033,-487.0,0.00016074,2]
[406996698,1772437839042,-487.0,0.00016074,2]
[406996699,1772437839052,-487.0,0.00016074,2]
[406996700,1772437839060,-487.0,0.00016074,2]
[406996701,1772437839070,-487.0,0.00016074,2]
[406996702,1772437839079,-487.0,0.00016074,2]
[406996703,1772437839087,-487.0,0.00016074,2]
[406996704,1772437839096,-487.0,0.00016074,2]
[406996705,1772437839106,-487.0,0.00016074,2]
[406996706,1772437839115,-487.0,0.00016074,2]
[406996707,1772437839124,-487.0,0.00016074,2]
[406996708,1772437839134,-487.0,0.00016074,2]
[406996709,1772437839145,-487.0,0.00016074,2]
[406996710,1772437839154,-487.0,0.00016074,2]
[406996711,1772437839163,-487.0,0.00016074,2]
[406996712,1772437839172,-487.0,0.00016074,2]
[406996713,1772437839182,-487.0,0.00016074,2]
[406996714,1772437839191,-487.0,0.00016074,2]
[406996715,1772437839200,-487.0,0.00016074,2]
[406996716,1772437839210,-746.81,0.00016074,2]
[406996717,1772437839219,-151.0,0.000161,2]
[406996718,1772437839229,-151.0,0.000161,2]
[406996719,1772437839238,-151.0,0.000161,2]
[406996720,1772437839248,-151.0,0.000161,2]
[406996721,1772437839257,-151.0,0.000161,2]
[406996722,1772437839266,-151.0,0.000161,2]
[406996723,1772437839275,-500.0,0.00016163,2]
[406996724,1772437839285,-9000.0,0.00016173,2]
[406996725,1772437839294,-9000.0,0.00016173,2]
[406996726,1772437839303,-5275.53708045,0.00016173,2]
[406996727,1772437839313,-151.0,0.00016173,2]
[406996728,1772437839322,-353.12353366,0.00016173,2]
[406996729,1772437839331,-151.0,0.00016173,2]
[406996730,1772437839341,-143376.71158926,0.00016174,2]
[406996731,1772437839351,-205.830428,0.00016174,2]
[406996732,1772437839360,-151.0,0.00016174,2]
[406996733,1772437839370,-151.0,0.000162,2]
[406996734,1772437839379,-151.0,0.000162,2]
[406996735,1772437839388,-151.0,0.000162,2]
[406996736,1772437839398,-151.0,0.000162,2]
[406996737,1772437839407,-858594.79585859,0.00016236,2]
[406996738,1772437839419,-1522.28706012,0.00016236,2]
[406996739,1772437839431,-926.91404703,0.00016236,2]
[406996740,1772437839442,-152276.1775741,0.00016236,2]
[406996747,1772437840752,-1421.2607696,0.00014853,2]
[406996749,1772437840763,-313618.8835093,0.00016236,2]
[406996751,1772437840775,-6423.94677741,0.00016236,2]
[406996754,1772437840786,-3924.9608205,0.00016236,2]
[406996756,1772437840818,-671.77936835,0.00016236,2]
[406996773,1772437846443,-324.453074,0.00015609,2]
[406996774,1772437846454,-221.302903,0.00016226,3]
[406996775,1772437846757,-1266.557097,0.00016226,3]
[406996776,1772437846766,-138536.24443229,0.00016236,2]
[406996777,1772437846797,-1440.7568321,0.00016236,2]
[406996788,1772438403231,-500.0,0.000108,2]
[406996789,1772438403541,-500.0,0.000108,2]
[406996790,1772438404430,-572.0,0.000108,2]
[406996791,1772438404455,-428.0,0.000108,2]
[406996792,1772438404772,-72.0,0.000108,2]
[406996793,1772438446310,707.0,0.00010959,30]
[406996794,1772438460437,-500.0,0.00013273,2]
[406996795,1772438460465,-500.0,0.00013273,2]
[406996796,1772438477305,-1712.45079201,0.00014889,2]
[406996797,1772438477378,-3254.85460457,0.00015,30]
[406996798,1772438506557,-20.41377664,0.00015,30]
[406996799,1772438506584,-3724.73161879,0.00015,30]
[406996808,1772438878727,3316.82,0.0001001,2]
[406996823,1772439032385,-1127.74715667,0.00013703,2]
[406996825,1772439032398,-876.86326639,0.00013703,2]
[406996907,1772439038525,-2467.32789774,0.00013703,2]
[406996909,1772439038534,-615.0,0.00013703,2]
[406996911,1772439038544,-1974.16718647,0.00013841,2]
[406996913,1772439038556,-2002.18581178,0.00013841,2]
[406996917,1772439038588,-873.53574813,0.00013841,2]
[406996919,1772439038599,-150.11125362,0.00013841,2]
[406996921,1772439038608,-300.0,0.0001398,2]
[406996923,1772439038617,-300.0,0.0001398,2]
[406996925,1772439038627,-300.0,0.0001398,2]
[406996927,1772439038637,-5000.0,0.00013981,2]
[406996929,1772439038648,-174.4972652,0.00014052,2]
[406996931,1772439038659,-200.0,0.00014363,2]
[406996933,1772439038668,-1500.0,0.00015,2]
[406996935,1772439038678,-200.0,0.00015014,2]
[406996937,1772439038688,-6359.44525599,0.00015039,2]
[406996939,1772439038697,-995.64610913,0.00015043,2]
[406996941,1772439038707,-1607.65518928,0.00015143,2]
[406996943,1772439038716,-2398.4119403,0.0001532,2]
[406996945,1772439038726,-1343.2670744,0.00015508,2]
[406996947,1772439038735,-307.1000068,0.00015608,2]
[406996949,1772439038744,-2487.15318209,0.00015868,2]
[406996951,1772439038753,-158.12278646,0.00016074,2]
[406996953,1772439038762,-518.4915089,0.00016225,2]
[406996955,1772439038772,-103280.37249181,0.00016232,2]
[406996990,1772439046708,-5000.0,0.0001607,2]
[406996991,1772439046718,-2104.62,0.00016222,3]
[406996992,1772439046728,-1317.97075827,0.00016232,2]
[406996993,1772439046739,-19333.32361667,0.00016232,2]
[406996994,1772439046750,-575.62523003,0.00016232,2]
[406997050,1772439170690,-500.0,0.000108,2]
[406997051,1772439170713,-500.0,0.000108,2]
[406997059,1772439821467,131744.0,0.0001,2]
[406997060,1772439857616,10000.0,0.0001,10]
[406997061,1772439876566,1390.096,0.0001,10]
[406997082,1772440231887,-5000.0,0.00012142,2]
[406997083,1772440231896,-5000.0,0.00012265,2]
[406997084,1772440231906,-353.52358126,0.00012389,2]
[406997085,1772440231916,-150.0,0.00012452,2]
[406997086,1772440231925,-300.0,0.00012639,2]
[406997087,1772440231937,-67.10647332,0.00012639,2]
[406997118,1772440238286,-5000.0,0.00012513,2]
[406997120,1772440238297,-1132.89352668,0.00012639,2]
[406997122,1772440238307,-200.0,0.00012921,2]
[406997124,1772440238317,-500.0,0.00013699,2]
[406997127,1772440238331,-420.0,0.00013866,2]
[406997129,1772440238342,-625.0,0.00013903,2]
[406997131,1772440238352,-1000.0,0.00014247,2]
[406997133,1772440238362,-275.8847889,0.00014284,2]
[406997135,1772440238372,-500.0,0.00014284,2]
[406997137,1772440238382,-500.0,0.00014284,2]
[406997139,1772440238392,-500.0,0.00014284,2]
[406997141,1772440238402,-500.0,0.00014284,2]
[406997143,1772440238412,-500.0,0.00014284,2]
[406997144,1772440238421,-268.38223815,0.00014284,2]
[406997146,1772440238431,-247.74575297,0.00014452,2]
[406997148,1772440238441,-217.07467663,0.00014524,7]
[406997150,1772440238451,-297.89234969,0.00014524,7]
[406997152,1772440238461,-1133.97959092,0.00014795,2]
[406997154,1772440238471,-500.0,0.0001486,2]
[406997156,1772440238481,-500.0,0.0001486,2]
[406997158,1772440238491,-171.0,0.00015212,2]
[406997160,1772440238500,-181.08010149,0.00015404,2]
[406997162,1772440238510,-250.0,0.00015404,2]
[406997164,1772440238519,-250.0,0.00015404,2]
[406997166,1772440238528,-599.60298507,0.00015404,2]
[406997168,1772440238539,-250.0,0.00015404,2]
[406997170,1772440238549,-250.0,0.00015404,2]
[406997172,1772440238560,-152.74574736,0.00015404,2]
[406997174,1772440238569,-156.587,0.00015404,2]
[406997176,1772440238579,-181.08010149,0.00015404,2]
[406997178,1772440238588,-187.78006525,0.00015404,2]
[406997180,1772440238597,-194.72792766,0.00015404,2]
[406997182,1772440238607,-2398.4119403,0.00015404,2]
[406997184,1772440238620,-201.93286099,0.00015404,2]
[406997186,1772440238630,-209.40437684,0.00015404,2]
[406997187,1772440238640,-500.0,0.00015404,2]
[406997189,1772440238653,-217.15233878,0.00015404,2]
[406997191,1772440238663,-500.0,0.00015404,2]
[406997193,1772440238673,-225.18697532,0.00015404,2]
[406997195,1772440238683,-500.0,0.00015404,2]
[406997197,1772440238695,-250.0,0.00015404,2]
[406997199,1772440238705,-233.51889341,0.00015404,2]
[406997201,1772440238716,-500.0,0.00015404,2]
[406997203,1772440238726,-250.0,0.00015404,2]
[406997205,1772440238736,-242.15909246,0.00015404,2]
[406997207,1772440238745,-500.0,0.00015404,2]
[406997209,1772440238754,-500.0,0.00015404,2]
[406997211,1772440238764,-500.0,0.00015404,2]
[406997213,1772440238774,-250.0,0.00015404,2]
[406997215,1772440238783,-530.75896633,0.00015404,2]
[406997217,1772440238792,-250.0,0.00015404,2]
[406997219,1772440238802,-500.0,0.00015404,2]
[406997221,1772440238812,-500.0,0.00015404,2]
[406997223,1772440238821,-500.0,0.00015404,2]
[406997225,1772440238834,-500.0,0.00015404,2]
[406997227,1772440238843,-500.0,0.00015404,2]
[406997229,1772440238854,-207.14090265,0.00015404,2]
[406997231,1772440238864,-500.0,0.00015404,2]
[406997233,1772440238874,-251.11897888,0.00015404,2]
[406997235,1772440238884,-500.0,0.00015404,2]
[406997237,1772440238893,-260.4103811,0.00015404,2]
[406997239,1772440238903,-500.0,0.00015404,2]
[406997241,1772440238913,-270.0455652,0.00015404,2]
[406997243,1772440238923,-500.0,0.00015404,2]
[406997245,1772440238933,-280.03725112,0.00015404,2]
[406997247,1772440238943,-496.47127164,0.00015404,2]
[406997249,1772440238952,-500.0,0.00015404,2]
[406997251,1772440238964,-290.39862941,0.00015404,2]
[406997252,1772440238975,-500.0,0.00015404,2]
[406997253,1772440238984,-301.1433787,0.00015404,2]
[406997254,1772440238994,-500.0,0.00015404,2]
[406997256,1772440239004,-500.0,0.00015404,2]
[406997258,1772440239014,-500.0,0.00015404,2]
[406997260,1772440239024,-500.0,0.00015404,2]
[406997261,1772440239033,-478.74241238,0.00015404,2]
[406997263,1772440239043,-250.0,0.00015404,2]
[406997265,1772440239052,-139.37205625,0.00015404,2]
[406997266,1772440239065,-110.62794375,0.00015404,2]
[406997267,1772440239075,-186.5952388,0.00015608,2]
[406997268,1772440239084,-1430.30523888,0.00015783,2]
[406997269,1772440239093,-8156.13788069,0.000158,10]
[406997270,1772440239103,-621.78829552,0.00015952,2]
[406997271,1772440239113,-2289.33003472,0.00015952,2]
[406997272,1772440239124,-514.84070869,0.00015952,2]
[406997273,1772440239134,-179.49,0.00015954,2]
[406997274,1772440239144,-322.62818353,0.00016173,2]
[406997275,1772440239154,-284.62101563,0.00016173,2]
[406997276,1772440239164,-368.34920611,0.00016173,2]
[406997277,1772440239177,-505.48692376,0.00016173,2]
[406997278,1772440239187,-161.55330282,0.000162,2]
[406997279,1772440239196,-500.0,0.0001623,2]
[406997280,1772440239207,-551.59392987,0.00016236,2]
[406997281,1772440239218,-139849.80828083,0.00016236,2]
[406997282,1772440239229,-6020.13623295,0.00016236,2]
[406997283,1772440239253,-2716.23165476,0.00016236,2]
[406997309,1772440240453,-267.38611932,0.00015404,2]
[406997311,1772440240462,-37.25497783,0.00016236,2]
[406997313,1772440240474,-7909.01872154,0.00016236,2]
[406997351,1772440242835,-285.0,0.00016236,2]
[406997370,1772440243024,-16165.11720978,0.00016236,2]
[406997441,1772440245838,-5437.9837775,0.00014284,2]
[406997443,1772440262750,-137.30261408,0.00014,2]
[406997444,1772440262776,-3756.60237641,0.00014,2]
[406997456,1772440781235,-1000.0,0.00010585,2]
[406997457,1772440782309,-1000.0,0.00010585,2]
[406997458,1772440783296,-1000.0,0.00010585,2]